[Event "8th RTU Open 2018"]
[Site "Riga"]
[Date "2018.08.10"]
[Round "7"]
[White "Jacobs, Florian"]
[Black "Bernotas, Arturs"]
[Result "0-1"]
[ECO "E48"]
[WhiteElo "2255"]
[BlackElo "2406"]
[Annotator "NA"]
[PlyCount "42"]
[EventDate "2018.08.06"]
[EventType "swiss"]
[EventCountry "LAT"]
[SourceTitle "playchess.com"]
[Source "ChessBase"]
[SourceQuality "1"]
[TimeControl "5400+30"]

1. d4 {[%emt 0:00:00]} Nf6 {[%emt 0:02:19]} 2. c4 {[%emt 0:00:00]} e6 {[%emt 0:00:23]} 3. Nc3 {[%emt 0:00:00]} Bb4 {[%emt 0:00:27]} 4. e3 {[%emt 0:00:00]} O-O {[%emt 0:00:31]} 5. Bd3 {[%emt 0:00:00]} d5 {[%emt 0:01:17]} 6. cxd5 {[%emt 0:00:05]} exd5 {[%emt 0:00:49]} 7. Nge2 {[%emt 0:00:07]} Re8 {[%emt 0:05:50]} 8. Bd2 {[%emt 0:00:09]} b6 {[%emt 0:01:06]} 9. O-O {[%emt 0:00:23]} Bb7 {[%emt 0:00:19]} 10. Rc1 {[%emt 0:00:41]} a6 {[%emt 0:00:54]} 11. f3 {[%emt 0:09:11]} c5 {[%emt 0:06:39]} 12. Qe1 {[%emt 0:02:56]} Nc6 {[%emt 0:05:04]} 13. Qh4 {[%emt 0:05:07]} Ne7 {[%emt 0:12:03]} 14. a3 {[%emt 0:17:53]} Ba5 {[%emt 0:07:16]} 15. Nf4 {[%emt 0:02:50]} Ng6 {[%emt 0:03:25]} 16. Nxg6 {[%emt 0:00:58]} hxg6 {[%emt 0:00:13]} 17. Kh1 {[%emt 0:10:39]} Rc8 {[%emt 0:06:12]} 18. g4 {[%emt 0:02:30]} cxd4 {[%emt 0:09:44]} 19. exd4 {[%emt 0:00:59]} b5 {[%emt 0:00:26]} 20. g5 {[%emt 0:09:22]} Ne4 {[%emt 0:12:39]} 21. Qf4 {[%emt 0:13:54]} Bc7 {[%emt 0:02:36]} 0-1

[Event "8th RTU Open 2018"]
[Site "Riga"]
[Date "2018.08.10"]
[Round "7"]
[White "Bluebaum, Karl Ernst"]
[Black "Lagunow, Raphael"]
[Result "1/2-1/2"]
[ECO "E04"]
[WhiteElo "2253"]
[BlackElo "2404"]
[Annotator "NA"]
[PlyCount "156"]
[EventDate "2018.08.06"]
[EventType "swiss"]
[EventCountry "LAT"]
[SourceTitle "playchess.com"]
[Source "ChessBase"]
[SourceQuality "1"]
[TimeControl "5400+30"]

1. d4 {[%emt 0:00:00]} Nf6 {[%emt 0:05:34]} 2. c4 {[%emt 0:00:00]} e6 {[%emt 0:00:08]} 3. Nf3 {[%emt 0:00:13]} d5 {[%emt 0:00:22]} 4. g3 {[%emt 0:00:16]} dxc4 {[%emt 0:00:30]} 5. Bg2 {[%emt 0:01:15]} Bb4+ {[%emt 0:00:11]} 6. Bd2 {[%emt 0:02:17]} a5 {[%emt 0:00:15]} 7. O-O {[%emt 0:06:48]} O-O {[%emt 0:00:15]} 8. a3 {[%emt 0:03:38]} Bxd2 {[%emt 0:00:43]} 9. Nbxd2 {[%emt 0:00:17]} b5 {[%emt 0:01:19]} 10. a4 {[%emt 0:01:59]} c6 {[%emt 0:00:43]} 11. Qb1 {[%emt 0:23:58]} Nbd7 {[%emt 0:09:16]} 12. Rc1 {[%emt 0:12:27]} Ba6 {[%emt 0:28:52]} 13. e4 {[%emt 0:14:22]} h6 {[%emt 0:05:19]} 14. b3 {[%emt 0:01:51]} cxb3 {[%emt 0:02:25]} 15. Nxb3 {[%emt 0:04:24]} bxa4 {[%emt 0:01:40]} 16. Rxa4 {[%emt 0:00:11]} Bb5 {[%emt 0:00:06]} 17. Ra1 {[%emt 0:01:24]} a4 {[%emt 0:01:56]} 18. Nc5 {[%emt 0:01:14]} Nxc5 {[%emt 0:01:59]} 19. Rxc5 {[%emt 0:00:04]} Nd7 {[%emt 0:01:18]} 20. Rc3 {[%emt 0:01:00]} Qa5 {[%emt 0:02:09]} 21. Qc1 {[%emt 0:01:37]} Nf6 {[%emt 0:01:47]} 22. Ne5 {[%emt 0:01:01]} Rfd8 {[%emt 0:02:59]} 23. Rc5 {[%emt 0:11:25]} Qb4 {[%emt 0:03:17]} 24. d5 {[%emt 0:00:35]} Nxe4 {[%emt 0:12:00]} 25. Bxe4 {[%emt 0:01:56]} Qxe4 {[%emt 0:00:07]} 26. Nxc6 {[%emt 0:00:09]} Bxc6 {[%emt 0:00:58]} 27. dxc6 {[%emt 0:00:01]} Rac8 {[%emt 0:05:36]} 28. Rc4 {[%emt 0:04:33]} Qf3 {[%emt 0:00:52]} 29. Rc3 {[%emt 0:00:38]} Rd1+ {[%emt 0:07:40]} 30. Qxd1 {[%emt 0:00:07]} Qxc3 {[%emt 0:00:02]} 31. Qxa4 {[%emt 0:00:54]} Rxc6 {[%emt 0:00:36]} 32. Rd1 {[%emt 0:00:28]} Qf3 {[%emt 0:01:26]} 33. Re1 {[%emt 0:00:55]} Qd5 {[%emt 0:02:19]} 34. h4 {[%emt 0:01:27]} h5 {[%emt 0:01:07]} 35. Rd1 {[%emt 0:01:11]} Qf3 {[%emt 0:00:06]} 36. Re1 {[%emt 0:00:05]} Kh7 {[%emt 0:01:25]} 37. Qe4+ {[%emt 0:00:31]} Qxe4 {[%emt 0:00:02]} 38. Rxe4 {[%emt 0:00:01]} Kg6 {[%emt 0:00:13]} 39. Kg2 {[%emt 0:00:10]} f6 {[%emt 0:00:16]} 40. Ra4 {[%emt 0:00:43]} e5 {[%emt 0:00:31]} 41. Kf3 {[%emt 0:00:58]} Kf5 {[%emt 0:00:07]} 42. Ra7 {[%emt 0:00:24]} g6 {[%emt 0:01:32]} 43. Ra3 {[%emt 0:00:44]} Rc4 {[%emt 0:00:44]} 44. Kg2 {[%emt 0:00:18]} g5 {[%emt 0:00:35]} 45. hxg5 {[%emt 0:00:58]} Kxg5 {[%emt 0:00:01]} 46. Ra8 {[%emt 0:00:33]} h4 {[%emt 0:00:11]} 47. gxh4+ {[%emt 0:00:33]} Kxh4 {[%emt 0:00:44]} 48. Kf3 {[%emt 0:00:12]} Kg5 {[%emt 0:00:31]} 49. Kg3 {[%emt 0:00:49]} Rc3+ {[%emt 0:00:11]} 50. Kg2 {[%emt 0:00:22]} Kf4 {[%emt 0:00:55]} 51. Ra4+ {[%emt 0:00:03]} e4 {[%emt 0:00:04]} 52. Rb4 {[%emt 0:00:20]} f5 {[%emt 0:00:37]} 53. Ra4 {[%emt 0:00:08]} Rd3 {[%emt 0:00:20]} 54. Rb4 {[%emt 0:00:16]} Ke5 {[%emt 0:00:39]} 55. Rb5+ {[%emt 0:00:29]} Rd5 {[%emt 0:00:51]} 56. Rb8 {[%emt 0:00:42]} Kf4 {[%emt 0:00:58]} 57. Rb4 {[%emt 0:00:10]} Rd2 {[%emt 0:00:04]} 58. Ra4 {[%emt 0:00:30]} Re2 {[%emt 0:00:47]} 59. Rb4 {[%emt 0:03:09]} Kg4 {[%emt 0:00:16]} 60. Ra4 {[%emt 0:00:26]} Kf4 {[%emt 0:00:54]} 61. Rb4 {[%emt 0:00:08]} Re1 {[%emt 0:00:30]} 62. Ra4 {[%emt 0:00:12]} Rd1 {[%emt 0:00:31]} 63. Rb4 {[%emt 0:00:06]} Ke5 {[%emt 0:00:13]} 64. Rb5+ {[%emt 0:00:28]} Rd5 {[%emt 0:00:02]} 65. Rb8 {[%emt 0:00:29]} f4 {[%emt 0:00:19]} 66. Re8+ {[%emt 0:01:04]} Kf5 {[%emt 0:00:43]} 67. Rf8+ {[%emt 0:01:52]} Kg4 {[%emt 0:00:01]} 68. Rg8+ {[%emt 0:00:10]} Rg5 {[%emt 0:00:05]} 69. Re8 {[%emt 0:00:06]} f3+ {[%emt 0:00:36]} 70. Kf1 {[%emt 0:00:01]} Kf4 {[%emt 0:00:40]} 71. Ke1 {[%emt 0:00:54]} Re5 {[%emt 0:01:55]} 72. Rf8+ {[%emt 0:00:04]} Rf5 {[%emt 0:00:02]} 73. Re8 {[%emt 0:00:01]} Re5 {[%emt 0:00:30]} 74. Rf8+ {[%emt 0:00:03]} Kg4 {[%emt 0:00:02]} 75. Kd2 {[%emt 0:00:33]} Kh3 {[%emt 0:01:24]} 76. Rg8 {[%emt 0:00:44]} e3+ {[%emt 0:00:32]} 77. fxe3 {[%emt 0:00:01]} f2 {[%emt 0:00:06]} 78. Ke2 {[%emt 0:00:06]} Rxe3+ {[%emt 0:00:32]} 1/2-1/2

[Event "8th RTU Open 2018"]
[Site "Riga"]
[Date "2018.08.10"]
[Round "7"]
[White "Semjonovs, Ilja"]
[Black "Gokerkan, Cem Kaan"]
[Result "0-1"]
[ECO "B91"]
[WhiteElo "2242"]
[BlackElo "2404"]
[Annotator "NA"]
[PlyCount "146"]
[EventDate "2018.08.06"]
[EventType "swiss"]
[EventCountry "LAT"]
[SourceTitle "playchess.com"]
[Source "ChessBase"]
[SourceQuality "1"]
[TimeControl "5400+30"]

1. e4 c5 {[%emt 0:05:36]} 2. Nf3 {[%emt 0:00:00]} d6 {[%emt 0:00:12]} 3. d4 {[%emt 0:00:07]} cxd4 {[%emt 0:00:04]} 4. Nxd4 {[%emt 0:00:05]} Nf6 {[%emt 0:00:04]} 5. Nc3 {[%emt 0:00:08]} a6 {[%emt 0:00:06]} 6. g3 {[%emt 0:01:09]} e5 {[%emt 0:00:39]} 7. Nb3 {[%emt 0:00:16]} Be7 {[%emt 0:00:10]} 8. Bg2 {[%emt 0:00:13]} b5 {[%emt 0:00:15]} 9. O-O {[%emt 0:08:28]} O-O {[%emt 0:00:25]} 10. h3 {[%emt 0:08:04]} Nbd7 {[%emt 0:02:47]} 11. f4 {[%emt 0:01:08]} b4 {[%emt 0:09:08]} 12. Nd5 {[%emt 0:08:05]} Nxd5 {[%emt 0:00:37]} 13. Qxd5 {[%emt 0:00:05]} Qb6+ {[%emt 0:08:25]} 14. Kh2 {[%emt 0:00:58]} Bb7 {[%emt 0:00:23]} 15. Qd3 {[%emt 0:06:29]} a5 {[%emt 0:01:03]} 16. Be3 {[%emt 0:03:41]} Qc6 {[%emt 0:05:24]} 17. c4 {[%emt 0:18:48]} bxc3 {[%emt 0:02:08]} 18. Qxc3 {[%emt 0:00:05]} Qxc3 {[%emt 0:00:30]} 19. bxc3 {[%emt 0:00:04]} Rfc8 {[%emt 0:00:42]} 20. Rfc1 {[%emt 0:00:25]} a4 {[%emt 0:07:22]} 21. Nd2 {[%emt 0:00:05]} Ba6 {[%emt 0:05:20]} 22. Bf1 {[%emt 0:05:46]} Bxf1 {[%emt 0:03:50]} 23. Nxf1 {[%emt 0:00:36]} Rab8 {[%emt 0:01:24]} 24. Rab1 {[%emt 0:03:10]} h5 {[%emt 0:07:07]} 25. Rb4 {[%emt 0:04:10]} Nf6 {[%emt 0:02:05]} 26. Rxa4 {[%emt 0:02:23]} Ra8 {[%emt 0:00:30]} 27. Rxa8 {[%emt 0:01:29]} Rxa8 {[%emt 0:00:01]} 28. Rc2 {[%emt 0:00:21]} Nxe4 {[%emt 0:00:15]} 29. Nd2 {[%emt 0:00:37]} Nxd2 {[%emt 0:04:47]} 30. Bxd2 {[%emt 0:01:03]} f5 {[%emt 0:03:35]} 31. Be3 {[%emt 0:05:37]} Kf7 {[%emt 0:01:33]} 32. Kg2 {[%emt 0:00:40]} Ke6 {[%emt 0:03:42]} 33. Kf3 {[%emt 0:02:00]} Ra4 {[%emt 0:01:53]} 34. fxe5 {[%emt 0:14:43]} dxe5 {[%emt 0:00:44]} 35. h4 {[%emt 0:00:04]} Rc4 {[%emt 0:01:29]} 36. Ke2 {[%emt 0:01:33]} Rg4 {[%emt 0:09:24]} 37. Bf2 {[%emt 0:03:15]} f4 {[%emt 0:05:08]} 38. gxf4 {[%emt 0:00:08]} exf4 {[%emt 0:01:17]} 39. Rb2 {[%emt 0:00:07]} Bxh4 {[%emt 0:00:32]} 40. Rb6+ {[%emt 0:00:08]} Kf5 {[%emt 0:00:55]} 41. Rb5+ {[%emt 0:00:14]} Kg6 {[%emt 0:00:27]} 42. Bxh4 {[%emt 0:00:09]} Rxh4 {[%emt 0:00:03]} 43. Kf3 {[%emt 0:00:02]} Rh3+ {[%emt 0:01:10]} 44. Kxf4 {[%emt 0:00:25]} Rxc3 {[%emt 0:00:01]} 45. Rb6+ {[%emt 0:00:26]} Kh7 {[%emt 0:00:11]} 46. a4 {[%emt 0:01:23]} Rc4+ {[%emt 0:00:58]} 47. Kg5 {[%emt 0:00:19]} Rc5+ {[%emt 0:00:02]} 48. Kh4 {[%emt 0:00:34]} g6 {[%emt 0:00:27]} 49. Ra6 {[%emt 0:01:18]} Kh6 {[%emt 0:00:17]} 50. a5 {[%emt 0:00:40]} Rc4+ {[%emt 0:00:04]} 51. Kh3 {[%emt 0:00:04]} Ra4 {[%emt 0:00:29]} 52. Ra8 {[%emt 0:00:10]} Ra3+ {[%emt 0:00:30]} 53. Kh2 {[%emt 0:00:10]} Kg5 {[%emt 0:00:54]} 54. a6 {[%emt 0:00:48]} Kh4 {[%emt 0:00:12]} 55. a7 {[%emt 0:00:23]} Ra2+ {[%emt 0:00:07]} 56. Kg1 {[%emt 0:00:38]} g5 {[%emt 0:00:03]} 57. Rc8 {[%emt 0:02:11]} Rxa7 {[%emt 0:00:36]} 58. Rc2 {[%emt 0:00:10]} Ra1+ {[%emt 0:00:19]} 59. Kg2 {[%emt 0:00:06]} g4 {[%emt 0:00:19]} 60. Rb2 {[%emt 0:00:30]} Ra5 {[%emt 0:00:12]} 61. Rc2 {[%emt 0:00:13]} Kg5 {[%emt 0:00:22]} 62. Rb2 {[%emt 0:00:37]} h4 {[%emt 0:00:14]} 63. Rb1 {[%emt 0:00:06]} Ra2+ {[%emt 0:01:06]} 64. Kh1 {[%emt 0:00:45]} h3 {[%emt 0:04:17]} 65. Rc1 {[%emt 0:00:14]} g3 {[%emt 0:02:57]} 66. Rb1 {[%emt 0:00:24]} Rd2 {[%emt 0:00:21]} 67. Ra1 {[%emt 0:02:42]} Kf4 {[%emt 0:00:08]} 68. Rb1 {[%emt 0:01:14]} Ke3 {[%emt 0:00:12]} 69. Re1+ {[%emt 0:00:48]} Kd3 {[%emt 0:00:12]} 70. Ra1 {[%emt 0:00:26]} Ke2 {[%emt 0:00:21]} 71. Rg1 {[%emt 0:00:26]} Rd1 {[%emt 0:00:12]} 72. Rxd1 {[%emt 0:00:10]} Kxd1 {[%emt 0:00:02]} 73. Kg1 {[%emt 0:00:05]} Ke2 {[%emt 0:00:07]} 0-1

[Event "8th RTU Open 2018"]
[Site "Riga"]
[Date "2018.08.10"]
[Round "7"]
[White "Mierins, Eriks"]
[Black "Pershin, Denis"]
[Result "1-0"]
[ECO "B12"]
[WhiteElo "2235"]
[BlackElo "2403"]
[Annotator "NA"]
[PlyCount "113"]
[EventDate "2018.08.06"]
[EventType "swiss"]
[EventCountry "LAT"]
[SourceTitle "playchess.com"]
[Source "ChessBase"]
[SourceQuality "1"]
[TimeControl "5400+30"]

1. e4 {[%emt 0:08:21]} c6 {[%emt 0:00:00]} 2. d4 {[%emt 0:00:05]} d5 {[%emt 0:00:00]} 3. e5 {[%emt 0:00:04]} Bf5 {[%emt 0:00:00]} 4. Bd3 {[%emt 0:02:16]} Bxd3 {[%emt 0:00:03]} 5. Qxd3 {[%emt 0:00:05]} e6 {[%emt 0:00:12]} 6. f4 {[%emt 0:01:19]} g6 {[%emt 0:08:12]} 7. Nf3 {[%emt 0:00:41]} h5 {[%emt 0:00:20]} 8. Be3 {[%emt 0:01:35]} Nh6 {[%emt 0:01:49]} 9. Nc3 {[%emt 0:00:19]} Nf5 {[%emt 0:01:02]} 10. Bf2 {[%emt 0:00:08]} Qa5 {[%emt 0:00:46]} 11. a3 {[%emt 0:10:03]} Na6 {[%emt 0:10:24]} 12. Kd2 {[%emt 0:12:14]} Nc7 {[%emt 0:05:41]} 13. b4 {[%emt 0:05:13]} Qa6 {[%emt 0:05:15]} 14. Qxa6 {[%emt 0:02:11]} Nxa6 {[%emt 0:00:09]} 15. Na4 {[%emt 0:09:02]} Nc7 {[%emt 0:03:28]} 16. g3 {[%emt 0:03:23]} a5 {[%emt 0:11:53]} 17. c3 {[%emt 0:00:42]} b5 {[%emt 0:05:17]} 18. Nb2 {[%emt 0:00:05]} Be7 {[%emt 0:03:29]} 19. h3 {[%emt 0:02:34]} Kd7 {[%emt 0:10:39]} 20. Nd3 {[%emt 0:00:07]} axb4 {[%emt 0:08:00]} 21. axb4 {[%emt 0:00:08]} Ra4 {[%emt 0:00:36]} 22. Rxa4 {[%emt 0:02:29]} bxa4 {[%emt 0:00:02]} 23. Ng5 {[%emt 0:00:37]} Bxg5 {[%emt 0:10:19]} 24. fxg5 {[%emt 0:00:07]} a3 {[%emt 0:00:48]} 25. Nc5+ {[%emt 0:03:02]} Ke7 {[%emt 0:00:05]} 26. Ra1 {[%emt 0:01:15]} Nb5 {[%emt 0:00:02]} 27. Be1 {[%emt 0:00:45]} Ra8 {[%emt 0:02:04]} 28. Ra2 {[%emt 0:01:54]} Kf8 {[%emt 0:01:20]} 29. Kd3 {[%emt 0:00:27]} Ne7 {[%emt 0:00:16]} 30. Bd2 {[%emt 0:02:59]} Nc8 {[%emt 0:00:03]} 31. Nb7 {[%emt 0:00:30]} Nb6 {[%emt 0:01:36]} 32. Na5 {[%emt 0:01:09]} Na4 {[%emt 0:00:02]} 33. Kc2 {[%emt 0:06:29]} Nb2 {[%emt 0:03:12]} 34. Kb3 {[%emt 0:00:18]} Nd3 {[%emt 0:00:10]} 35. Nxc6 {[%emt 0:12:40]} Rc8 36. c4 {[%emt 0:00:42]} Nc7 {[%emt 0:10:04]} 37. b5 dxc4+ {[%emt 0:00:11]} 38. Kxc4 {[%emt 0:00:47]} Nb2+ {[%emt 0:00:03]} 39. Kc5 {[%emt 0:07:28]} Na4+ {[%emt 0:01:24]} 40. Kb4 {[%emt 0:00:37]} Nb6 {[%emt 0:00:01]} 41. Rxa3 {[%emt 0:00:21]} Ncd5+ {[%emt 0:00:46]} 42. Kb3 {[%emt 0:03:26]} Nc7 {[%emt 0:00:01]} 43. Bb4+ {[%emt 0:00:24]} Kg7 {[%emt 0:00:07]} 44. Na7 Ra8 {[%emt 0:01:22]} 45. Bd6 {[%emt 0:01:11]} Ncd5 {[%emt 0:00:43]} 46. Bc5 {[%emt 0:00:15]} Nd7 {[%emt 0:00:30]} 47. Nc6 {[%emt 0:01:31]} Rc8 {[%emt 0:00:01]} 48. Ra7 {[%emt 0:00:22]} Nc7 {[%emt 0:01:00]} 49. Kc4 {[%emt 0:00:26]} Nxc5 {[%emt 0:00:29]} 50. dxc5 {[%emt 0:00:25]} Nd5 {[%emt 0:00:15]} 51. Nd4 Ne3+ {[%emt 0:00:06]} 52. Kb4 {[%emt 0:01:16]} Nd5+ {[%emt 0:00:04]} 53. Ka5 {[%emt 0:00:13]} Kf8 {[%emt 0:00:28]} 54. c6 {[%emt 0:00:10]} Rd8 {[%emt 0:00:09]} 55. b6 {[%emt 0:00:42]} Ne7 {[%emt 0:00:14]} 56. Rxe7 {[%emt 0:00:21]} Kxe7 {[%emt 0:00:07]} 57. b7 {[%emt 0:00:17]} 1-0

[Event "8th RTU Open 2018"]
[Site "Riga"]
[Date "2018.08.10"]
[Round "7"]
[White "Gorodetzky, Matan"]
[Black "Martin, Julian"]
[Result "0-1"]
[ECO "A46"]
[WhiteElo "2231"]
[BlackElo "2392"]
[Annotator "NA"]
[PlyCount "105"]
[EventDate "2018.08.06"]
[EventType "swiss"]
[EventCountry "LAT"]
[SourceTitle "playchess.com"]
[Source "ChessBase"]
[SourceQuality "1"]
[TimeControl "5400+30"]

1. d4 Nf6 2. Nf3 e6 3. e3 d5 4. a3 Bd6 5. c4 dxc4 6. Bxc4 O-O 7. O-O Nc6 8. Nc3 e5 9. d5 Ne7 10. e4 a6 11. Be2 h6 12. Ne1 c6 13. dxc6 Nxc6 14. Nc2 Be6 15. Ne3 b5 16. Ned5 Nd4 17. Bd3 Bc5 18. Nxf6+ Qxf6 19. Be3 Rad8 20. Qh5 Bb3 21. Rac1 Nf3+ 22. Qxf3 Qxf3 23. gxf3 Bxe3 24. fxe3 Rxd3 25. Rfe1 Rfd8 26. Nb1 Bc4 27. Kf2 Kf8 28. Rc2 Ke7 29. Rec1 Ke6 30. a4 R8d6 31. Rc3 Rxc3 32. Rxc3 Ba2 33. Rc1 bxa4 34. Nc3 Bb3 35. Ra1 Rd2+ 36. Kg3 Rxb2 37. Nxa4 Rc2 38. Ra3 Bc4 39. Nc5+ Kd6 40. Nxa6 Rb2 41. Ra4 Bf1 42. Ra1 Be2 43. Ra4 Bf1 44. Ra1 Be2 45. Ra4 Kc6 46. Ra3 Kb6 47. Nb8 Bb5 48. Rc3 Kb7 49. Rc5 Kxb8 50. Rxe5 Bc6 51. Rf5 Rb7 52. Re5 Kc7 53. Rc5 0-1

[Event "8th RTU Open 2018"]
[Site "Riga"]
[Date "2018.08.10"]
[Round "7"]
[White "Manafov, Vugar Gulam"]
[Black "Gorbatov, Alexej"]
[Result "1/2-1/2"]
[ECO "A04"]
[WhiteElo "2215"]
[BlackElo "2389"]
[Annotator "NA"]
[PlyCount "74"]
[EventDate "2018.08.06"]
[EventType "swiss"]
[EventCountry "LAT"]
[SourceTitle "playchess.com"]
[Source "ChessBase"]
[SourceQuality "1"]
[TimeControl "5400+30"]

1. Nf3 g6 2. g3 {[%emt 0:00:00]} Bg7 {[%emt 0:02:56]} 3. d4 {[%emt 0:02:00]} c5 {[%emt 0:02:43]} 4. d5 {[%emt 0:00:44]} d6 {[%emt 0:05:05]} 5. Bg2 {[%emt 0:01:49]} Nf6 {[%emt 0:00:09]} 6. O-O {[%emt 0:00:28]} O-O {[%emt 0:03:54]} 7. Nc3 {[%emt 0:06:15]} e6 {[%emt 0:19:43]} 8. Nd2 {[%emt 0:04:25]} Nbd7 {[%emt 0:03:57]} 9. Nde4 {[%emt 0:03:12]} exd5 {[%emt 0:06:36]} 10. Nxd6 {[%emt 0:00:49]} d4 {[%emt 0:01:10]} 11. Ncb5 {[%emt 0:02:30]} a6 {[%emt 0:01:34]} 12. Na3 {[%emt 0:02:04]} Ra7 {[%emt 0:03:21]} 13. e3 Ne8 14. Nxc8 {[%emt 0:01:42]} Qxc8 {[%emt 0:00:32]} 15. exd4 {[%emt 0:00:37]} cxd4 {[%emt 0:00:05]} 16. Bf4 {[%emt 0:15:25]} b5 17. Bh3 Qc6 {[%emt 0:03:09]} 18. Rc1 {[%emt 0:02:00]} Nc5 {[%emt 0:03:41]} 19. Bg2 {[%emt 0:11:20]} Qb6 {[%emt 0:05:48]} 20. Qf3 Ne6 {[%emt 0:01:22]} 21. Bd2 {[%emt 0:02:17]} Nd6 {[%emt 0:01:28]} 22. c3 Rc7 23. cxd4 {[%emt 0:02:24]} Nxd4 {[%emt 0:00:45]} 24. Qd3 {[%emt 0:00:07]} Re8 {[%emt 0:02:51]} 25. Rxc7 {[%emt 0:03:53]} Qxc7 {[%emt 0:00:01]} 26. Kh1 {[%emt 0:00:13]} Qb6 {[%emt 0:03:13]} 27. Bf4 {[%emt 0:04:21]} h5 {[%emt 0:04:42]} 28. Nb1 {[%emt 0:03:13]} b4 {[%emt 0:06:14]} 29. Nd2 {[%emt 0:01:28]} Qb5 {[%emt 0:01:38]} 30. Qxb5 {[%emt 0:00:59]} N4xb5 {[%emt 0:00:15]} 31. Rb1 {[%emt 0:02:12]} Be5 {[%emt 0:02:34]} 32. Bxe5 {[%emt 0:00:41]} Rxe5 {[%emt 0:00:02]} 33. Bf1 {[%emt 0:00:33]} Rc5 {[%emt 0:00:51]} 34. Nb3 {[%emt 0:02:41]} Rc2 {[%emt 0:02:45]} 35. Kg1 {[%emt 0:00:30]} Nc4 {[%emt 0:00:52]} 36. Bxc4 {[%emt 0:01:20]} Rxc4 {[%emt 0:00:03]} 37. Rc1 {[%emt 0:00:09]} Rxc1+ 1/2-1/2

[Event "8th RTU Open 2018"]
[Site "Riga"]
[Date "2018.08.10"]
[Round "7"]
[White "Pavlov, Sergey"]
[Black "Tanriverdi, Enes"]
[Result "1-0"]
[ECO "A05"]
[WhiteElo "2003"]
[BlackElo "2276"]
[Annotator "NA"]
[PlyCount "60"]
[EventDate "2018.08.06"]
[EventType "swiss"]
[EventCountry "LAT"]
[SourceTitle "playchess.com"]
[Source "ChessBase"]
[SourceQuality "1"]
[TimeControl "5400+30"]

1. Nf3 {[%emt 0:00:00]} Nf6 {[%emt 0:00:00]} 2. g3 {[%emt 0:00:00]} g6 {[%emt 0:00:07]} 3. b3 {[%emt 0:00:10]} Bg7 {[%emt 0:00:17]} 4. Bb2 {[%emt 0:00:06]} d5 {[%emt 0:00:32]} 5. c4 {[%emt 0:00:30]} c6 {[%emt 0:01:28]} 6. Bg2 {[%emt 0:00:42]} O-O {[%emt 0:00:19]} 7. O-O {[%emt 0:00:32]} a5 {[%emt 0:11:51]} 8. d3 {[%emt 0:07:07]} Re8 {[%emt 0:02:34]} 9. Qc2 {[%emt 0:09:55]} Bg4 {[%emt 0:11:37]} 10. Ne5 {[%emt 0:10:13]} Be6 {[%emt 0:00:31]} 11. Nd2 {[%emt 0:02:43]} Nbd7 {[%emt 0:06:59]} 12. Ndf3 {[%emt 0:05:49]} Nxe5 {[%emt 0:03:03]} 13. Bxe5 {[%emt 0:00:56]} a4 {[%emt 0:19:19]} 14. Nd4 {[%emt 0:08:26]} Qd7 {[%emt 0:00:28]} 15. cxd5 {[%emt 0:10:11]} Bxd5 {[%emt 0:02:47]} 16. e4 {[%emt 0:01:09]} Be6 {[%emt 0:00:34]} 17. bxa4 {[%emt 0:02:00]} Bh3 {[%emt 0:00:46]} 18. Nf3 {[%emt 0:06:21]} Ra5 {[%emt 0:01:47]} 19. Rab1 {[%emt 0:05:59]} Bxg2 {[%emt 0:07:56]} 20. Kxg2 {[%emt 0:00:05]} Rea8 {[%emt 0:00:10]} 21. Qb3 {[%emt 0:01:33]} Rxa4 {[%emt 0:02:10]} 22. Qxb7 {[%emt 0:01:14]} Qxd3 {[%emt 0:01:38]} 23. Rfd1 {[%emt 0:05:31]} Qxe4 {[%emt 0:01:18]} 24. Rd4 {[%emt 0:00:31]} R4a7 {[%emt 0:07:47]} 25. Qxa7 {[%emt 0:03:51]} Rxa7 {[%emt 0:00:05]} 26. Rb8+ {[%emt 0:00:19]} Bf8 {[%emt 0:00:05]} 27. Bxf6 {[%emt 0:00:36]} Qd5 {[%emt 0:04:46]} 28. Rxd5 {[%emt 0:01:02]} cxd5 {[%emt 0:00:04]} 29. Bd4 {[%emt 0:01:21]} Rxa2 {[%emt 0:00:09]} 30. Ne5 {[%emt 0:00:53]} Ra7 {[%emt 0:00:14]} 1-0